[Event "Catalonia Championship Veterans 2024"]
[Site "Salou Tarragona"]
[Date "2024.05.18"]
[Round "8.10"]
[White "Borras Julian, Teodoro"]
[Black "Sanchez Bernardino, Miguel Angel"]
[Result "0-1"]
[ECO "B26"]
[WhiteElo "1867"]
[BlackElo "1954"]
[Annotator "RC"]
[PlyCount "78"]
[EventDate "2024.05.11"]
[EventType "swiss"]
[EventCountry "ESP"]
[SourceTitle "playchess.com"]
[Source "ChessBase"]
[SourceQuality "1"]
[TimeControl "5400+30"]

1. e4 {[%emt 0:01:50]} c5 {[%emt 0:00:13]} 2. Nc3 {[%emt 0:00:22]} Nc6 {[%emt 0:00:17]} 3. g3 {[%emt 0:00:08]} g6 {[%emt 0:00:15]} 4. Bg2 {[%emt 0:00:10]} Bg7 {[%emt 0:00:14]} 5. d3 {[%emt 0:00:21]} d6 {[%emt 0:00:23]} 6. Be3 {[%emt 0:00:12]} Rb8 {[%emt 0:00:42]} 7. Qd2 {[%emt 0:00:45]} b5 {[%emt 0:00:30]} 8. Nge2 {[%emt 0:09:11]} b4 {[%emt 0:00:51]} 9. Nd1 {[%emt 0:00:06]} Nd4 {[%emt 0:00:39]} 10. h3 {[%emt 0:03:46]} e5 {[%emt 0:07:01]} 11. f4 {[%emt 0:00:42]} Ne7 {[%emt 0:01:20]} 12. O-O {[%emt 0:00:38]} O-O {[%emt 0:03:13]} 13. fxe5 {[%emt 0:05:52]} dxe5 {[%emt 0:04:29]} 14. Nxd4 {[%emt 0:02:34]} cxd4 {[%emt 0:02:00]} 15. Bh6 {[%emt 0:00:22]} Qc7 {[%emt 0:03:42]} 16. Bxg7 {[%emt 0:01:35]} Kxg7 {[%emt 0:00:14]} 17. b3 {[%emt 0:01:16]} Be6 {[%emt 0:03:19]} 18. a3 {[%emt 0:04:25]} bxa3 {[%emt 0:01:17]} 19. Rxa3 {[%emt 0:00:36]} Rfc8 {[%emt 0:01:20]} 20. Rf2 {[%emt 0:01:09]} f5 {[%emt 0:03:25]} 21. Nb2 {[%emt 0:07:13]} fxe4 {[%emt 0:01:30]} 22. dxe4 {[%emt 0:02:20]} Rf8 {[%emt 0:03:27]} 23. Ra4 {[%emt 0:18:19]} Rxf2 {[%emt 0:06:30]} 24. Qxf2 {[%emt 0:04:22]} Nc6 {[%emt 0:05:18]} 25. Nd3 {[%emt 0:04:24]} a5 {[%emt 0:02:58]} 26. Kh2 {[%emt 0:08:17]} Qd6 {[%emt 0:05:36]} 27. Ra1 {[%emt 0:08:10]} Rb7 {[%emt 0:16:13]} 28. Rf1 {[%emt 0:05:55]} Rf7 {[%emt 0:03:16]} 29. Qe2 {[%emt 0:00:26]} Nb4 {[%emt 0:01:26]} 30. Rxf7+ {[%emt 0:00:31]} Bxf7 {[%emt 0:00:09]} 31. Bf1 {[%emt 0:02:09]} Be8 {[%emt 0:04:22]} 32. Bg2 {[%emt 0:04:00]} a4 {[%emt 0:01:54]} 33. Nb2 {[%emt 0:02:52]} a3 {[%emt 0:00:57]} 34. Nc4 {[%emt 0:00:19]} Bb5 {[%emt 0:01:52]} 35. Qd1 {[%emt 0:00:58]} Bxc4 {[%emt 0:00:19]} 36. bxc4 {[%emt 0:00:05]} a2 {[%emt 0:00:28]} 37. Bf1 {[%emt 0:00:34]} Qa6 {[%emt 0:00:24]} 38. c5 {[%emt 0:00:55]} a1=Q {[%emt 0:00:53]} 39. Bxa6 {[%emt 0:00:21]} Qxd1 {[%emt 0:17:04]} 0-1